bitfinex/quotes_ETHUSD_20240719
["timestamp","ask_amount","ask_price","bid_price","bid_amount"]
[1721403424764,2.89466,3454.7,3453.6,2.4144]
[1721403424765,2.89507,3454.2,3453.6,2.4144]
[1721403425560,2.89516,3454.1,3453.6,2.4144]
[1721403425927,2.89481,3454.5,3453.6,2.4144]
[1721403426125,2.89475,3454.6,3453.6,2.4144]
[1721403426126,3.0,3454.4,3453.6,2.65584]
[1721403426456,3.0,3454.5,3453.6,2.65584]
[1721403426652,5.89477,3454.5,3453.6,2.65584]
[1721403426839,2.89487,3454.4,3453.6,2.65584]
[1721403427363,3.0,3454.5,3452.9,2.8961]
[1721403427364,2.89503,3454.2,3452.9,2.4144]
[1721403427724,3.0,3455.0,3453.2,2.89584]
[1721403427725,2.89466,3454.7,3453.2,2.89584]
[1721403427936,5.8947,3454.6,3453.2,2.89584]
[1721403428338,5.8947,3454.6,3453.0,2.89603]
[1721403428339,2.89478,3454.5,3453.3,2.2658]
[1721403428541,3.0,3454.4,3453.3,2.2658]
[1721403428845,3.0,3454.4,3453.4,0.22658]
[1721403429041,5.89486,3454.4,3453.4,0.22658]
[1721403429231,3.0,3454.4,3453.4,0.22658]
[1721403429430,6.50808,3455.4,3453.4,0.22658]
[1721403429431,2.89425,3455.2,3453.9,2.4375]
[1721403429683,2.89402,3455.4,3454.0,2.89516]
[1721403429867,2.89402,3455.4,3453.9,5.3327]
[1721403429868,2.89394,3455.5,3454.1,6.155366]
[1721403430054,2.89393,3455.5,3454.2,0.04142456]
[1721403430429,2.89393,3455.5,3454.2,2.93644456]
[1721403430984,2.89377,3455.7,3454.4,2.3968]
[1721403431185,2.89377,3455.7,3454.5,0.0578864]
[1721403431493,3.83368886,3455.6,3454.6,0.53496264]
[1721403431687,2.89393,3455.5,3454.6,0.04139748]
[1721403431868,0.8995115,3456.2,3454.6,0.04139748]
[1721403432067,2.89416,3455.3,3454.4,2.3968]
[1721403432264,2.89382,3455.7,3454.5,2.39613192]
[1721403432583,2.89344,3456.1,3454.5,2.39613192]
[1721403432789,2.89344,3456.1,3454.6,0.23961319]
[1721403432989,5.89358,3456.0,3454.6,0.23961319]
[1721403433290,2.89386,3455.6,3454.7,0.0412231]
[1721403433492,2.89371,3455.8,3454.7,0.0412231]
[1721403433692,5.89382,3455.7,3454.7,0.0412231]
[1721403433858,5.89382,3455.7,3454.7,0.30479673]
[1721403434259,2.89385,3455.6,3454.7,0.30479673]
[1721403434460,2.89397,3455.5,3454.7,0.30479673]
[1721403434663,3.0,3455.7,3454.7,0.30479673]
[1721403434967,3.0,3455.7,3454.8,0.26596967]
[1721403435167,2.89335,3456.2,3454.8,3.20166815]
[1721403435168,3.0,3456.1,3454.8,3.20166815]
[1721403435367,5.89344,3456.1,3454.8,3.20166815]
[1721403435568,5.89344,3456.1,3454.8,0.30715815]
[1721403435783,5.89344,3456.1,3454.8,0.26596967]
[1721403436000,5.89344,3456.1,3454.9,0.04118407]
[1721403436693,2.89358,3456.0,3454.9,0.04118407]
[1721403436897,2.8936,3455.9,3454.9,0.04118407]
[1721403437095,2.8936,3455.9,3454.9,0.36136344]
[1721403437873,3.8995115,3456.1,3454.9,0.36136344]
[1721403438197,3.8995115,3456.1,3455.0,2.4168]
[1721403438198,2.89343,3456.1,3455.0,2.4168]
[1721403438515,3.0,3456.0,3455.1,0.04117525]
[1721403438676,2.8936,3455.9,3455.1,0.04117525]
[1721403439001,3.0,3456.0,3455.1,0.04117525]
[1721403439478,5.89352,3456.0,3455.1,0.04117525]
[1721403439804,3.8995115,3456.0,3455.1,0.04117525]
[1721403439977,2.89364,3455.9,3455.1,0.04117525]
[1721403440305,6.7930315,3456.0,3455.1,0.27239449]
[1721403440505,2.89361,3455.9,3455.2,0.04113686]
[1721403440808,3.8995115,3456.0,3455.2,0.04113686]
[1721403440973,0.8995115,3456.0,3455.2,0.04113686]
[1721403441178,3.0,3456.1,3455.2,0.04113686]
[1721403441179,0.8995115,3456.1,3455.2,0.04113686]
[1721403441381,0.8995115,3456.3,3455.3,3.16713313]
[1721403441582,1.19934867,3456.4,3455.4,2.3858]
[1721403441583,0.8995115,3456.4,3455.4,2.3858]
[1721403441768,0.8995115,3456.4,3455.4,5.32070899]
[1721403441966,0.8995115,3456.5,3455.4,2.42670899]
[1721403442206,0.8995115,3456.5,3455.4,5.32070899]
[1721403442515,0.8995115,3456.6,3455.5,0.84879021]
[1721403442666,0.8995115,3456.6,3455.5,3.78357326]
[1721403443078,0.8995115,3456.7,3455.6,2.492]
[1721403443508,0.8995115,3456.7,3455.6,3.04074668]
[1721403443715,1.65302621,3456.9,3455.8,2.89363]
[1721403443716,1.35318904,3456.9,3455.8,2.89363]
[1721403443936,0.8995115,3457.0,3455.9,7.54720102]
[1721403444152,6.50609,3457.8,3455.9,7.54720102]
[1721403444153,0.8995115,3457.1,3456.1,2.89338]
[1721403444333,1.19934867,3457.3,3456.2,11.02846]
[1721403444334,0.8995115,3457.3,3456.2,11.02846]
[1721403444641,0.8995115,3457.5,3456.2,11.0689657]
[1721403444840,0.8995115,3457.5,3456.3,1.39623457]
[1721403445012,0.8995115,3457.5,3456.4,5.7864]
[1721403445211,0.8995115,3457.5,3456.4,5.82689689]
[1721403445420,4.2453155,3457.6,3456.4,5.82689689]
[1721403445627,1.3531355,3457.6,3456.4,5.82689689]
[1721403445839,2.8924,3457.4,3456.4,5.82689689]
[1721403445999,2.89248,3457.3,3456.4,5.82689689]
[1721403446199,2.89252,3457.2,3456.4,5.82689689]
[1721403446401,3.7919315,3457.4,3456.4,5.82689689]
[1721403446603,2.89242,3457.4,3456.4,6.15579838]
[1721403446902,2.89246,3457.3,3456.4,5.82689689]
[1721403447126,0.8995115,3457.4,3456.4,5.82689689]
[1721403447301,5.78618,3456.5,3456.4,5.82689689]
[1721403447503,9.98552867,3456.5,3456.4,5.82689689]
[1721403447739,8.78618,3456.5,3456.4,5.7864]
[1721403448054,11.67927,3456.5,3456.4,5.7864]
[1721403448352,14.57236,3456.5,3456.4,0.35704062]
[1721403448578,14.57236,3456.5,3454.0,2.4749]
[1721403448579,2.89436,3455.0,3454.0,2.4749]
[1721403448746,2.89444,3454.9,3454.1,0.24749]
[1721403448945,0.90077208,3455.5,3454.1,0.03655455]
[1721403448946,2.89455,3454.8,3454.1,0.03655455]
[1721403449163,4.09501945,3455.5,3454.1,0.03655455]
[1721403449164,2.89445,3454.9,3454.1,0.03655455]
[1721403449536,3.79504208,3455.1,3454.1,0.03655455]
[1721403449860,0.90077208,3455.3,3454.1,0.03655455]
[1721403450072,3.0,3455.3,3454.1,0.03655455]
[1721403450252,1.20102945,3455.6,3454.2,3.43561746]
[1721403450253,0.90077208,3455.6,3454.2,3.43561746]
[1721403450560,0.90077208,3455.6,3454.3,0.03684587]
[1721403450561,2.89387,3455.6,3454.3,0.03684587]
[1721403450859,4.20102945,3455.8,3454.2,3.43561746]
[1721403450860,6.79452208,3455.8,3454.2,0.54065746]
[1721403451071,2.89378,3455.7,3454.3,0.59685441]
[1721403451237,5.89385,3455.6,3454.3,0.63370028]
[1721403451437,2.89385,3455.6,3454.3,0.63370028]
[1721403451966,2.89384,3455.7,3454.3,0.63370028]
[1721403452172,2.89416,3455.3,3454.4,0.35286803]
[1721403452354,1.20102945,3456.0,3454.3,0.63370028]
[1721403452355,0.90077208,3455.5,3454.3,0.03684587]
[1721403452674,0.90077208,3455.5,3454.5,0.03675018]
[1721403452675,2.89442,3455.0,3454.5,0.03675018]
[1721403452963,2.89444,3454.9,3454.0,2.4749]
[1721403453474,2.89444,3454.9,3454.1,0.03676783]
[1721403453856,3.79505208,3455.1,3454.1,0.03676783]
[1721403454163,2.89428,3455.1,3454.1,0.28793461]
[1721403454586,3.79488208,3455.3,3454.1,0.28793461]
[1721403454885,3.0,3455.2,3454.1,3.18303461]
[1721403455031,2.89391,3455.6,3454.1,3.18303461]
[1721403455233,3.0,3455.5,3454.1,3.18303461]
[1721403455434,3.0,3455.5,3454.2,0.56579346]
[1721403455635,2.89418,3455.3,3454.3,0.03680999]
[1721403456047,3.0,3455.2,3454.3,0.03680999]
[1721403457032,0.90077208,3455.5,3454.3,0.03680999]
[1721403457239,3.0,3455.5,3454.3,0.03680999]
[1721403457465,3.0,3455.5,3454.4,0.37487902]
[1721403457466,5.89394,3455.5,3454.4,0.37487902]
[1721403457668,0.90077208,3455.4,3454.3,0.03680999]
[1721403457877,0.90077208,3455.4,3454.1,0.25116678]
[1721403457878,6.79472208,3455.5,3454.5,0.03680116]
[1721403458078,2.89402,3455.4,3454.6,0.03679675]
[1721403458238,5.89412,3455.3,3454.1,0.25116678]
[1721403458434,5.89412,3455.3,3454.2,0.27260668]
[1721403458635,3.0,3455.3,3454.2,0.30976648]
[1721403458834,3.90077208,3455.4,3454.2,0.30976648]
[1721403459091,2.89419,3455.2,3454.2,0.30976648]
[1721403459235,2.89437,3455.0,3454.2,0.0371598]
[1721403460445,2.89461,3454.7,3454.2,0.0371598]
[1721403461750,3.79521208,3454.9,3454.2,0.0371598]
[1721403462338,0.90077208,3455.0,3454.2,0.0371598]
[1721403462570,3.79506208,3455.1,3454.2,0.0371598]
[1721403462767,0.90077208,3455.1,3454.2,0.28836578]
[1721403463147,0.90077208,3455.2,3454.2,0.28836578]
[1721403463591,3.90077208,3455.4,3454.2,3.18335578]
[1721403463742,0.90077208,3455.4,3454.2,3.18335578]
[1721403464077,1.50202864,3455.7,3454.4,2.3852]
[1721403464078,0.90077208,3455.7,3454.4,2.3852]
[1721403464383,1.20102945,3455.8,3454.6,2.89462]
[1721403464384,0.90077208,3455.8,3454.6,2.89462]
[1721403464583,0.90077208,3455.9,3454.6,2.89462]
[1721403464875,0.90077208,3455.9,3454.9,2.4934]
[1721403465062,0.90077208,3456.1,3454.9,2.4934]
[1721403465255,0.90077208,3456.0,3455.0,0.03711506]
[1721403465574,0.90077208,3456.0,3455.0,0.57962657]
[1721403465777,0.90077208,3455.9,3455.0,0.03711506]
[1721403466486,0.90077208,3455.8,3455.0,0.03711506]
[1721403466687,3.79445208,3455.8,3455.0,0.03711506]
[1721403466994,0.90077208,3455.8,3455.0,0.03711506]
[1721403467279,0.90077208,3455.9,3455.0,0.03711506]
[1721403467485,0.90077208,3455.9,3455.0,0.57962657]
[1721403467698,0.90077208,3456.0,3455.0,0.57962657]
[1721403467897,0.90077208,3456.1,3455.2,2.89417]
[1721403468055,4.20102945,3456.3,3455.3,0.03710183]
[1721403468056,0.90077208,3456.2,3455.3,0.03710183]
[1721403468253,3.0,3456.3,3454.9,2.4934]
[1721403468254,3.79404208,3456.3,3454.9,5.38777]
[1721403468631,0.90077208,3456.1,3455.0,0.86535006]
[1721403468777,0.90077208,3456.0,3455.0,0.86535006]
[1721403469287,0.90077208,3456.0,3455.0,0.828235]
[1721403469491,0.90077208,3456.1,3455.1,0.03711065]
[1721403469642,6.79412208,3456.2,3455.1,0.03711065]
[1721403469844,0.90077208,3456.1,3455.1,0.03711065]
[1721403470089,3.90077208,3456.2,3455.1,0.66243721]
[1721403470451,0.90077208,3456.2,3455.1,3.55669721]
[1721403470764,0.90077208,3456.2,3455.1,0.66243721]
[1721403470980,0.90077208,3456.1,3455.1,0.66243721]
[1721403471189,0.90077208,3456.1,3455.1,0.03711065]
[1721403471190,2.89368,3455.8,3455.1,0.03711065]
[1721403471405,2.89378,3455.7,3455.1,0.03711065]
[1721403471582,3.79455208,3455.7,3454.9,2.4934]
[1721403471745,2.89409,3455.4,3454.3,2.3934]
[1721403471951,0.90077208,3455.3,3455.0,0.03711506]
[1721403472178,0.90077208,3455.2,3454.3,2.3934]
[1721403472390,0.90077208,3455.1,3454.3,2.3934]
[1721403472571,0.90077208,3455.1,3454.4,0.03457748]
[1721403473092,1.20102945,3455.3,3454.4,0.03457748]
[1721403473093,0.90077208,3455.3,3454.4,2.92942748]
[1721403473246,3.90077208,3455.4,3454.5,2.8947]
[1721403473447,0.90077208,3455.4,3454.6,0.03456866]
[1721403474002,0.90077208,3455.4,3454.7,0.03456424]
[1721403474363,0.90077208,3455.4,3454.4,0.24651373]
[1721403474883,0.90077208,3455.4,3454.5,0.03457307]
[1721403475086,0.90077208,3455.5,3454.5,0.59522973]
[1721403475587,0.90077208,3455.3,3454.5,0.59522973]
[1721403475761,0.90077208,3455.3,3454.5,0.03457307]
[1721403476281,1.20102945,3455.4,3454.3,2.3934]
[1721403476282,0.90077208,3455.2,3454.3,2.3934]
[1721403476489,0.90077208,3455.2,3454.4,0.03457748]
[1721403476699,0.90077208,3455.0,3454.4,0.03457748]
[1721403477804,0.90077208,3455.0,3454.3,2.3934]
[1721403478096,0.90077208,3454.9,3454.5,0.03457307]
[1721403478401,4.09529945,3455.1,3454.6,0.03456866]
[1721403478402,0.90077208,3455.0,3454.6,0.03456866]
[1721403478760,0.90077208,3454.9,3454.3,2.3934]
[1721403478970,0.90077208,3455.0,3454.3,2.3934]
[1721403479175,0.90077208,3455.1,3454.4,0.03457748]
[1721403479667,1.20102945,3455.2,3454.4,0.03457748]
[1721403479668,0.90077208,3455.2,3454.4,0.03457748]
[1721403479894,0.90077208,3455.3,3454.5,0.53600473]
[1721403480099,0.90077208,3455.3,3454.6,0.03456866]
[1721403480486,0.90077208,3455.3,3454.3,2.3934]
[1721403480487,0.90077208,3455.1,3454.3,2.3934]
[1721403480658,4.09512945,3455.3,3454.3,2.3934]
[1721403480659,0.90077208,3455.2,3454.4,0.03457748]
[1721403481060,0.90077208,3455.1,3454.4,0.03457748]
[1721403481264,0.90077208,3455.0,3454.4,0.03457748]
[1721403481493,0.90077208,3454.7,3454.4,0.03457748]
[1721403481706,2.89469,3454.6,3454.2,0.0371598]
[1721403481909,2.89469,3454.6,3454.3,0.03122304]
[1721403481910,3.79568208,3454.4,3454.3,0.03122304]
[1721403482109,2.89491,3454.4,3454.2,0.0371598]
[1721403482311,0.90251885,3454.3,3454.2,0.0371598]
[1721403483026,2.89491,3454.4,3454.2,0.0371598]
[1721403483027,0.90251885,3454.4,3454.2,0.0371598]
[1721403483366,0.90251885,3454.6,3454.2,0.0371598]
[1721403483567,0.90251885,3454.6,3454.3,0.03122304]
[1721403483803,0.90251885,3454.6,3454.2,0.0371598]
[1721403484167,0.90251885,3454.7,3454.3,0.03122304]
[1721403484569,0.90251885,3454.7,3454.2,2.3834598]
[1721403484969,0.90251885,3454.7,3454.3,0.03122304]
[1721403485466,0.90251885,3454.7,3454.2,2.3834598]
[1721403485715,0.90251885,3454.8,3454.3,0.03122304]
[1721403485908,0.90251885,3454.8,3454.2,2.3834598]
[1721403486203,4.20102945,3455.0,3454.3,0.03122304]
[1721403486204,3.90251885,3455.0,3454.3,0.03122304]
[1721403486379,0.90251885,3454.9,3454.3,0.03122304]
[1721403486790,0.90251885,3455.0,3454.3,0.03122304]
[1721403487300,0.90251885,3454.9,3454.3,0.03122304]
[1721403487464,0.90251885,3455.0,3454.3,0.26530288]
[1721403487667,0.90251885,3455.1,3454.4,0.03121862]
[1721403489381,0.90251885,3455.3,3454.5,2.89477]
[1721403489815,0.90251885,3455.4,3454.6,0.0312098]
[1721403490016,0.90251885,3455.3,3454.6,0.0312098]
[1721403490304,0.90251885,3455.2,3454.7,0.03120539]
[1721403490529,0.90251885,3455.0,3454.2,2.3834598]
[1721403490816,0.90251885,3455.0,3454.3,0.23834598]
[1721403490965,0.90251885,3455.0,3454.3,0.26956902]
[1721403491370,0.90251885,3454.8,3454.3,0.26956902]
[1721403491809,0.90251885,3455.0,3454.3,0.26956902]
[1721403492375,0.94079506,3454.9,3454.3,0.26956902]
[1721403492576,0.90251885,3454.8,3454.4,0.55480488]
[1721403492911,0.90251885,3454.8,3454.5,0.03121421]
[1721403493127,0.94084542,3454.7,3454.5,0.03121421]
[1721403493270,0.94084542,3454.7,3454.3,0.23834598]
[1721403493271,0.94084542,3454.7,3454.6,0.0312098]
[1721403493476,0.94084542,3454.7,3454.3,0.23834598]
[1721403493477,1.84335364,3454.7,3454.3,0.23834598]
[1721403493701,0.90251885,3454.8,3454.4,0.03121862]
[1721403493907,0.94084314,3454.7,3454.4,0.55480444]
[1721403494105,0.94084314,3454.7,3454.5,0.03121421]
[1721403494418,1.20102945,3454.9,3454.4,0.55480444]
[1721403494419,0.90251885,3454.9,3454.4,2.4994]
[1721403494574,0.90251885,3455.2,3454.9,2.3037]
[1721403494923,1.20102945,3455.4,3455.0,2.92554025]
[1721403494924,0.90251885,3455.4,3455.0,2.92554025]
[1721403495125,0.94107335,3455.3,3455.1,3.41719403]
[1721403495275,0.90251885,3455.4,3455.1,0.52292403]
[1721403495475,0.90251885,3455.5,3455.2,0.03118143]
[1721403495707,1.84363211,3455.4,3455.2,0.03118143]
[1721403496013,0.90251885,3455.4,3455.2,0.03118143]
[1721403496213,0.94108068,3455.3,3455.2,0.03118143]
[1721403496513,0.94107787,3455.3,3455.2,0.03118143]
[1721403496710,0.90251885,3455.4,3455.2,0.03118143]
[1721403497179,0.90251885,3455.4,3455.2,0.60639698]
[1721403497392,0.90251885,3455.5,3455.2,0.60639698]
[1721403497893,0.94106707,3455.4,3455.2,0.03118143]
[1721403498249,0.94106707,3455.4,3454.4,2.4055]
[1721403498250,1.20102945,3455.3,3454.4,2.4055]
[1721403498530,0.94106707,3455.4,3454.4,2.4055]
[1721403498531,0.90488523,3454.7,3454.4,2.4055]
[1721403498833,1.84573159,3454.6,3454.4,2.4055]
[1721403499130,2.11139887,3454.8,3454.4,2.4055]
[1721403499314,0.9408459,3454.7,3454.4,2.4055]
[1721403499518,0.90488523,3454.6,3453.9,2.4104]
[1721403500229,0.90488523,3454.6,3453.9,5.4104]
[1721403500530,2.8942,3455.2,3453.9,5.4104]
[1721403500531,1.84570827,3454.5,3453.9,5.4104]
[1721403500737,0.90488523,3454.6,3453.9,2.4104]
[1721403500934,0.90488523,3454.6,3453.9,5.30566]
[1721403501098,0.94085069,3454.5,3453.9,5.30566]
[1721403501430,0.90488523,3454.6,3453.9,5.30566]
[1721403501635,0.90488523,3454.7,3453.9,5.30566]
[1721403502191,0.90488523,3454.7,3454.1,2.89507]
[1721403502392,0.90488523,3454.8,3454.1,2.89507]
[1721403502600,0.90488523,3454.8,3454.4,2.89485]
[1721403502846,0.90488523,3454.9,3454.5,2.3283]
[1721403503330,1.20651364,3455.1,3454.5,2.3283]
[1721403503331,0.90488523,3455.0,3454.5,2.3283]
[1721403503543,0.90488523,3455.0,3454.6,2.89463]
[1721403503742,0.90488523,3455.1,3454.7,0.522293]
[1721403504042,0.90488523,3455.1,3454.7,3.416893]
[1721403504207,0.90488523,3455.2,3454.7,3.416893]
[1721403504696,1.20651364,3455.4,3454.7,3.416893]
[1721403504697,0.90488523,3455.3,3454.7,3.416893]
[1721403504896,0.90488523,3455.4,3454.7,3.416893]
[1721403505139,1.84579999,3455.3,3454.9,2.89443]
[1721403505299,0.90488523,3455.3,3454.9,2.89443]
[1721403505722,0.90488523,3455.3,3454.8,3.4690393]
[1721403506722,0.90488523,3455.4,3454.8,3.4690393]
[1721403507033,0.94090851,3455.3,3454.8,3.4690393]
[1721403507246,0.90488523,3455.4,3454.9,0.63637093]
[1721403507397,0.94092771,3455.3,3454.9,0.63637093]
[1721403507743,0.94092771,3455.3,3454.9,3.53080093]
[1721403508296,1.84581294,3455.3,3454.5,2.3283]
[1721403508535,1.50813872,3455.6,3454.5,2.3283]
[1721403508536,0.90488523,3455.1,3454.5,2.3283]
[1721403508698,0.94087793,3455.0,3454.5,2.3283]
[1721403508898,1.84576316,3455.0,3454.5,2.3283]
[1721403509099,0.94087358,3454.9,3454.5,2.3283]
[1721403509501,0.94087358,3454.9,3454.5,5.22307]
[1721403509827,1.50813872,3455.3,3454.6,2.89468]
[1721403509828,0.90488523,3455.2,3454.6,2.89468]
[1721403510543,1.84599023,3455.1,3454.5,6.2488489]
[1721403510702,0.90488523,3455.1,3454.5,6.2488489]
[1721403510902,0.90488523,3455.1,3454.5,3.3540889]
[1721403511104,0.94112407,3455.0,3454.6,0.03004095]
[1721403511323,1.8460093,3455.0,3454.6,0.03004095]
[1721403511537,0.94112407,3455.0,3454.6,0.03004095]
[1721403512848,0.90488523,3455.1,3454.6,0.03004095]
[1721403513145,0.94104415,3455.0,3454.6,0.03004095]
[1721403513308,0.90488523,3455.1,3454.6,0.03004095]
[1721403513734,1.84590542,3455.0,3454.6,0.03004095]
[1721403513935,0.90488523,3455.1,3454.6,1.14485205]
[1721403514151,0.90488523,3455.3,3454.6,1.14485205]
[1721403514307,0.94101698,3455.2,3454.7,2.8946]
[1721403514504,0.94101698,3455.2,3454.8,0.95627734]
[1721403515508,1.84590221,3455.2,3454.8,0.95627734]
[1721403515839,1.84585528,3455.1,3454.8,0.03003213]
[1721403516048,0.90488523,3455.2,3454.5,5.223]
[1721403516353,1.84585134,3455.1,3454.5,2.3283]
[1721403516506,1.84585134,3455.1,3454.6,5.81903907]
[1721403516507,0.94097458,3455.0,3454.6,5.81903907]
[1721403516936,0.90488523,3454.9,3454.6,5.81903907]
[1721403517131,0.90488523,3455.0,3454.6,5.81903907]
[1721403517516,0.90488523,3455.1,3454.6,8.71365907]
[1721403517724,0.90488523,3455.1,3454.7,1.40419591]
[1721403518010,0.90488523,3455.1,3454.8,5.81904157]
[1721403518211,0.90488523,3455.2,3454.8,5.81904157]
[1721403518411,0.9409395,3455.1,3454.8,5.81904157]
[1721403519711,0.90488523,3455.2,3454.8,5.81904157]
[1721403519911,0.94061735,3455.1,3454.8,5.81904157]
[1721403520329,0.90488523,3455.2,3454.8,5.81904157]
[1721403520524,0.94054083,3455.1,3454.8,5.81904157]
[1721403520726,1.84542606,3455.1,3454.8,5.81904157]
[1721403520918,0.94041584,3455.0,3454.8,5.81904157]
[1721403521118,0.90488523,3455.1,3454.8,5.81904157]
[1721403521320,0.90488523,3455.2,3454.8,5.81904157]
[1721403521531,0.9403532,3455.1,3454.8,5.81904157]
[1721403522017,0.90488523,3455.2,3454.8,5.81904157]
[1721403523061,1.84538208,3455.1,3454.8,5.81904157]
[1721403523262,1.84538208,3455.0,3454.8,5.81904157]
[1721403523420,0.90488523,3455.0,3454.8,5.81904157]
[1721403523621,0.94043382,3454.9,3454.8,5.81904157]
[1721403523877,0.90488523,3455.0,3454.8,5.81904157]
[1721403525147,0.90488523,3455.1,3454.8,5.81904157]
[1721403525343,1.84512957,3455.0,3454.8,5.81904157]
[1721403525657,1.84512957,3454.9,3454.8,5.789]
[1721403526021,0.90488523,3454.9,3454.8,5.789]
[1721403526319,2.44795898,3454.9,3454.8,5.81902648]
[1721403526526,2.89443,3454.9,3454.8,5.81902648]
[1721403526724,8.08892674,3454.9,3454.8,5.81902648]
[1721403527657,7.00334155,3454.9,3454.8,5.81902648]
[1721403527825,5.19449674,3454.9,3454.8,5.81902648]
[1721403528935,2.19449674,3454.9,3454.8,5.81902648]
[1721403529140,2.14644773,3454.9,3454.8,5.81902648]
[1721403529335,0.9402619,3454.9,3454.8,5.81902648]
[1721403529577,1.84514451,3454.9,3454.8,5.81902648]
[1721403529869,0.9402619,3454.9,3454.8,5.81902648]
[1721403530041,0.90488261,3455.0,3454.8,6.69039713]
[1721403530235,0.90488261,3455.1,3454.8,6.69039713]
[1721403530466,1.84524704,3455.0,3454.8,5.81902648]
[1721403530774,0.90488261,3455.0,3454.8,5.81902648]
[1721403531358,0.94031632,3454.9,3454.8,5.81902648]
[1721403531575,1.84519893,3454.9,3454.8,5.81902648]
[1721403531753,0.94031632,3454.9,3454.8,5.81902648]
[1721403531925,0.90488261,3455.0,3454.8,5.81902648]
[1721403532328,0.85488261,3455.1,3454.8,6.97985813]
[1721403532550,0.94034793,3455.0,3454.8,6.97985813]
[1721403532840,0.94034793,3455.0,3454.8,9.87436813]
[1721403533054,0.85488261,3455.1,3454.9,2.89443]
[1721403533365,1.20618583,3455.5,3455.0,11.16805]
[1721403533578,0.94045879,3455.4,3455.1,1.29955809]
[1721403533871,0.94045879,3455.4,3455.2,8.68251]
[1721403534041,1.20618583,3455.6,3455.2,5.7884]
[1721403534372,0.94055812,3455.5,3455.3,0.03003842]
[1721403534670,0.94055812,3455.5,3455.2,5.7884]
[1721403534671,2.14674395,3455.5,3455.2,5.7884]
[1721403534825,1.20618583,3455.5,3455.4,0.03003401]
[1721403535026,1.20618583,3455.5,3455.2,5.7884]
[1721403535027,2.14672811,3455.5,3455.2,5.7884]
[1721403535225,1.20618583,3455.5,3455.4,0.03003401]
[1721403535460,2.14672226,3455.5,3455.2,5.7884]
[1721403535648,0.94053643,3455.4,3455.2,5.7884]
[1721403536031,0.94053643,3455.4,3455.3,0.03003842]
[1721403536223,0.94053643,3455.4,3455.2,5.7884]
[1721403536427,2.14672226,3455.4,3455.2,5.7884]
[1721403536628,0.94053643,3455.3,3455.2,5.7884]
[1721403537453,0.94053643,3455.4,3455.2,5.7884]
[1721403537660,2.19519251,3455.4,3455.2,5.7884]
[1721403537870,0.94053643,3455.3,3455.2,5.7884]
[1721403538250,5.89375,3455.8,3455.2,5.7884]
[1721403538449,1.50850706,3455.3,3455.2,5.7884]
[1721403538658,2.14717281,3455.3,3455.2,5.7884]
[1721403539953,0.94024739,3455.3,3455.2,5.7884]
[1721403540149,2.44875445,3455.3,3455.2,5.7884]
[1721403540775,2.19484818,3455.3,3455.2,5.7884]
[1721403540936,2.89385,3455.6,3455.2,5.7884]
[1721403541142,4.0056163,3455.5,3455.3,0.03003842]
[1721403541337,4.0056163,3455.5,3455.2,5.7884]
[1721403541338,4.0056163,3455.4,3455.2,5.7884]
[1721403541650,8.00601889,3455.8,3455.2,5.7884]
[1721403541651,2.19504868,3455.3,3455.2,5.7884]
[1721403541839,0.94045188,3455.3,3455.2,5.7884]
[1721403542042,0.94045188,3455.4,3455.2,5.81844283]
[1721403542541,0.94045188,3455.3,3455.2,5.81844283]
[1721403542743,2.19487576,3455.3,3455.2,5.81844283]
[1721403542965,1.25442388,3455.3,3455.2,5.81844283]
[1721403543170,2.19487576,3455.3,3455.2,5.81844283]
[1721403543657,2.44941236,3455.3,3455.2,5.81844283]
[1721403543979,2.44941236,3455.3,3455.2,6.40028711]
[1721403543980,0.94037266,3455.3,3455.2,6.40028711]
[1721403544191,2.14748964,3455.3,3455.2,6.40028711]
[1721403544476,2.14748964,3455.3,3455.2,5.81844283]
[1721403544477,2.14748377,3455.3,3455.2,5.81844283]
[1721403545783,0.94036679,3455.3,3455.2,5.81844283]
[1721403545983,2.19437922,3455.3,3455.2,5.81844283]
[1721403546865,1.25376934,3455.3,3455.2,5.81844283]
[1721403547049,1.25353855,3455.3,3455.2,5.81844283]
[1721403547549,2.19320377,3455.3,3455.2,5.81844283]
[1721403547777,1.25353855,3455.3,3455.2,5.81844283]
[1721403548554,2.19320377,3455.3,3455.2,5.81844283]
[1721403548792,2.19320377,3455.3,3455.2,5.7884]
[1721403549301,2.19320377,3455.3,3455.2,5.81842581]
[1721403549648,1.25353855,3455.3,3455.2,5.81842581]
[1721403550054,2.89385,3455.6,3455.2,5.7884]
[1721403550250,1.8091808,3455.4,3455.2,5.7884]
[1721403550456,2.19255187,3455.3,3455.2,5.7884]
[1721403550670,5.08665187,3455.3,3455.2,5.7884]
[1721403551301,7.98075187,3455.3,3455.2,5.7884]
[1721403551591,13.09146281,3455.3,3455.2,5.7884]
[1721403552492,10.19736281,3455.3,3455.2,5.7884]
[1721403552690,5.19255187,3455.3,3455.2,5.7884]
[1721403552893,4.00292464,3455.3,3455.2,5.7884]
[1721403553207,5.89377,3455.7,3455.2,5.7884]
[1721403553355,1.81137925,3455.5,3455.2,5.7884]
[1721403553551,3.0,3455.5,3455.2,5.7884]
[1721403553777,2.19593093,3455.4,3455.2,5.7884]
[1721403554165,0.94082987,3455.3,3455.2,5.7884]
[1721403554959,2.45065609,3455.3,3455.2,5.7884]
[1721403556093,2.45065609,3455.3,3455.2,5.81845037]
[1721403556598,2.45057472,3455.3,3455.2,5.81845037]
[1721403556954,1.95057472,3455.3,3455.2,5.81845037]
[1721403557388,1.34653952,3455.3,3455.2,12.39113879]
[1721403557557,0.90572944,3455.5,3455.4,2.89402]
[1721403557759,0.90572944,3455.6,3455.5,2.89393]
[1721403558018,1.20763926,3455.8,3455.5,8.68183]
[1721403558019,0.90572944,3455.8,3455.5,8.68183]
[1721403558299,0.90572944,3455.8,3455.6,0.87118527]
[1721403558708,0.90572944,3455.8,3455.7,0.02997735]
[1721403558996,0.90572944,3455.9,3455.8,2.3689]
[1721403559203,0.90572944,3456.0,3455.8,2.3689]
[1721403559358,0.90572944,3456.1,3455.8,3.56404926]
[1721403559687,1.20763926,3456.2,3455.8,3.56404926]
[1721403559688,0.90572944,3456.0,3455.8,3.59402221]
[1721403560003,0.90572944,3456.0,3455.8,6.54551032]
[1721403560322,0.90572944,3456.2,3455.9,8.6808]
[1721403560514,1.20763926,3456.3,3455.9,8.6808]
[1721403560515,0.90572944,3456.3,3455.9,8.6808]
[1721403560799,0.90572944,3456.3,3456.0,1.5465034]
[1721403561476,1.50976464,3456.6,3456.1,5.7869]
[1721403561477,0.90572944,3456.4,3456.1,5.7869]
[1721403561809,0.90572944,3456.2,3456.1,5.81654577]
[1721403562015,1.50746124,3456.2,3456.1,5.81654577]